bitfinex-derivatives/quotes_ETHF0:USTF0_20241018
["timestamp","ask_amount","ask_price","bid_price","bid_amount"]
[1729290066031,1.12819366,2642.6,2642.5,2.32399]
[1729290066836,0.74980366,2642.6,2642.5,2.32399]
[1729290067132,1.12819366,2642.6,2642.5,2.32399]
[1729290067436,3.08597736,2642.6,2642.5,2.32399]
[1729290067827,3.08597736,2642.6,2642.5,0.96399]
[1729290068034,0.37841,2642.5,2642.4,0.95571]
[1729290068230,1.54930366,2642.5,2642.2,5.1595]
[1729290068434,2.85323,2642.4,2642.3,0.37842]
[1729290068629,3.04253366,2642.4,2642.3,0.37842]
[1729290069031,1.10333366,2642.4,2642.3,1.73842]
[1729290069234,1.10333366,2642.4,2642.3,2.32382]
[1729290069436,1.67043084,2642.4,2642.3,2.32382]
[1729290069631,0.37842,2642.4,2642.3,2.86222]
[1729290069841,1.85954718,2642.4,2642.3,2.86222]
[1729290070842,2.04885275,2642.4,2642.3,2.86222]
[1729290071236,0.56772557,2642.4,2642.3,2.86222]
[1729290072332,2.52550927,2642.4,2642.3,2.86222]
[1729290072742,0.56772557,2642.4,2642.3,2.86222]
[1729290075142,0.37842,2642.4,2642.3,2.86222]
[1729290075332,0.56773496,2642.4,2642.3,2.86222]
[1729290078252,0.56773496,2642.4,2642.1,4.19983926]
[1729290078253,7.29189866,2642.4,2642.1,3.2078]
[1729290078449,3.6962337,2642.2,2642.1,3.2078]
[1729290078634,3.6962337,2642.2,2641.7,2.0795728]
[1729290078635,0.37851,2641.8,2641.7,0.99203926]
[1729290078843,0.37851,2641.8,2641.6,1.4875728]
[1729290078844,0.37852,2641.7,2641.6,0.37853]
[1729290079041,0.37854,2641.6,2641.5,0.37854]
[1729290079242,1.36516509,2641.6,2641.4,4.3284]
[1729290079455,3.21939589,2641.5,2641.4,3.58636]
[1729290079849,3.40877593,2641.5,2641.4,3.58636]
[1729290080150,1.92793004,2641.5,2641.4,3.58636]
[1729290080442,1.92793004,2641.5,2641.3,0.37857]
[1729290080443,0.37857,2641.4,2641.3,0.37857]
[1729290080638,0.37857,2641.4,2641.1,4.3284]
[1729290080639,2.34581215,2641.4,2641.1,4.3284]
[1729290080840,1.73859,2641.2,2641.1,4.3284]
[1729290084336,1.73859,2641.2,2641.1,1.1206]
[1729290085749,0.37863,2640.9,2640.8,3.2078]
[1729290085943,1.73863,2640.9,2640.8,3.2078]
[1729290086344,5.52503,2640.9,2640.8,3.2078]
[1729290087051,4.16503,2640.9,2640.8,3.2078]
[1729290087257,6.65183,2640.9,2640.8,3.2078]
[1729290087547,0.5877,2640.9,2640.8,3.2078]
[1729290087750,0.37858,2641.3,2640.8,5.51442]
[1729290088048,1.73861,2641.1,2641.0,0.37862]
[1729290088243,1.73861,2641.1,2641.0,0.93842]
[1729290088645,1.73861,2641.1,2641.0,0.5598]
[1729290095544,0.37865,2640.8,2640.7,3.2078]
[1729290095745,1.73865,2640.8,2640.7,3.2078]
[1729290095949,5.52585,2640.8,2640.7,3.2078]
[1729290097654,1.73865,2640.8,2640.7,3.2078]
[1729290097955,5.52585,2640.8,2640.7,3.2078]
[1729290100554,0.37868,2640.6,2640.5,5.1501]
[1729290100854,1.73868,2640.6,2640.5,5.52879]
[1729290101352,1.73868,2640.6,2640.5,5.1501]
[1729290102357,1.73868,2640.6,2640.5,5.52879]
[1729290102559,0.37868,2640.6,2640.5,5.52879]
[1729290103853,0.37868,2640.6,2640.5,2.32099]
[1729290104048,0.37868,2640.6,2640.5,5.52879]
[1729290104550,0.37868,2640.6,2640.5,2.32099]
[1729290107066,3.2078,2641.1,2640.5,6.09683]
[1729290107261,0.37862,2641.1,2641.0,1.73862]
[1729290107653,0.37862,2641.0,2640.9,2.85353]
[1729290107856,1.73862,2641.0,2640.9,1.1149]
[1729290109461,1.73862,2641.0,2640.9,1.49353]
[1729290111164,0.37862,2641.1,2641.0,0.3786]
[1729290111358,1.73862,2641.1,2641.0,0.3786]
[1729290113759,0.37862,2641.0,2640.9,1.49352]
[1729290117962,3.2078,2641.4,2640.9,2.4749]
[1729290118272,3.2078,2641.4,2641.2,1.73858]
[1729290118273,1.36,2641.3,2641.2,1.73858]
[1729290118457,1.9487,2641.5,2641.2,1.36]
[1729290118658,0.37854,2641.6,2641.5,0.37855]
[1729290118854,1.7385,2641.9,2641.8,0.37849]
[1729290119060,0.3785,2641.9,2641.8,1.73849]
[1729290119459,0.3785,2641.9,2641.8,1.36]
[1729290120260,0.37851,2641.8,2641.7,3.2078]
[1729290120464,1.73851,2641.8,2641.7,3.58632]
[1729290121059,1.73851,2641.8,2641.7,3.2078]
[1729290121367,1.73851,2641.8,2641.7,3.58632]
[1729290121568,1.73851,2641.8,2641.7,3.2078]
[1729290122274,1.73851,2641.8,2641.7,3.58632]
[1729290124071,1.73851,2641.8,2641.7,0.37852]
[1729290124275,1.73851,2641.8,2641.7,3.58632]
[1729290125668,1.36,2641.8,2641.6,1.73853]
[1729290125868,0.37852,2641.7,2641.6,1.73853]
[1729290126076,0.37852,2641.7,2641.6,0.37853]
[1729290126277,0.37853,2641.6,2641.5,0.5778]
[1729290126481,1.73853,2641.6,2641.5,0.5778]
[1729290126670,0.37853,2641.6,2641.5,2.31635]
[1729290127070,0.37853,2641.6,2641.5,1.9378]
[1729290127469,1.52812841,2641.8,2641.5,1.9378]
[1729290127674,1.52812841,2641.8,2641.6,1.73853]
[1729290127675,0.37852,2641.7,2641.6,1.73853]
[1729290127873,1.73852,2641.7,2641.6,0.37853]
[1729290128778,1.36,2641.7,2641.6,0.37853]
[1729290129476,0.37851,2641.8,2641.7,0.37852]
[1729290129776,1.36,2641.9,2641.6,1.36]
[1729290129972,0.37851,2641.8,2641.7,0.37852]
[1729290130282,1.7385,2641.9,2641.8,0.37851]
[1729290130478,0.98032841,2642.0,2641.8,0.37851]
[1729290130777,4.177,2642.4,2641.9,4.5678]
[1729290130778,0.98032841,2642.4,2641.9,4.5678]
[1729290130973,0.37845,2642.2,2642.1,1.73845]
[1729290131379,0.37845,2642.2,2642.1,1.36]
[1729290131680,1.36,2642.2,2642.0,2.28467]
[1729290131873,1.73846,2642.1,2642.0,2.28467]
[1729290132472,1.36,2642.2,2642.0,1.9062]
[1729290132780,1.91122841,2642.6,2642.4,0.37842]
[1729290132977,1.7384,2642.6,2642.5,0.96831]
[1729290135485,1.36,2642.6,2642.5,0.96831]
[1729290135781,0.95046,2642.9,2642.8,0.37836]
[1729290135985,0.37836,2642.8,2642.7,1.73837]
[1729290144179,1.9321,2642.9,2642.7,1.36]
[1729290144384,0.37835,2642.9,2642.8,1.73836]
[1729290145990,1.36,2643.0,2642.9,0.37835]
[1729290145991,0.37834,2643.0,2642.9,0.37835]
[1729290146186,0.37834,2643.0,2642.9,1.73835]
[1729290147590,1.73834,2643.0,2642.9,1.73835]
[1729290148387,1.73834,2643.0,2642.9,1.36]
[1729290148598,0.37836,2642.8,2642.7,3.2078]
[1729290148894,0.37836,2642.8,2642.5,0.5899]
[1729290148895,0.37839,2642.6,2642.5,2.3283]
[1729290149192,0.37837,2642.8,2642.7,0.37836]
[1729290149390,0.37837,2642.8,2642.7,1.73836]
[1729290149802,1.36,2643.0,2642.8,0.37835]
[1729290149803,0.37836,2642.9,2642.8,0.37835]
[1729290150095,0.37836,2642.9,2642.8,1.73835]
[1729290150394,0.37834,2643.0,2642.9,0.37833]
[1729290150697,0.37833,2643.1,2643.0,0.37832]
[1729290150889,0.37833,2643.1,2643.0,0.91612]
[1729290151197,1.73833,2643.1,2643.0,0.5378]
[1729290151694,1.73833,2643.1,2643.0,0.91613]
[1729290153196,1.73833,2643.1,2642.9,0.5775]
[1729290153197,1.36,2643.1,2642.9,0.5775]
[1729290153396,0.37838,2642.7,2642.6,1.47709]
[1729290153593,1.73838,2642.7,2642.6,2.02959]
[1729290153803,1.73838,2642.7,2642.6,3.38959]
[1729290153999,0.37838,2642.7,2642.6,3.38959]
[1729290162691,0.37841,2642.5,2642.3,4.0238]
[1729290162892,0.96431,2642.6,2642.5,1.7384]
[1729290163092,0.96431,2642.6,2642.5,1.36]
[1729290163598,0.96431,2642.6,2642.5,1.73841]
[1729290163790,0.37843,2642.3,2642.2,0.91543]
[1729290164099,0.37843,2642.4,2642.3,0.37843]
[1729290164802,0.98032841,2642.6,2642.3,1.36]
[1729290165102,0.98032841,2642.7,2642.5,1.36]
[1729290165394,0.37839,2642.6,2642.5,1.36]
[1729290165901,0.37839,2642.6,2642.5,1.73841]
[1729290166090,1.73839,2642.6,2642.5,0.37841]
[1729290166291,2.71871841,2642.6,2642.5,0.37841]
[1729290168005,1.35871841,2642.6,2642.5,0.37841]
[1729290168204,0.37839,2642.6,2642.5,0.37841]
[1729290168397,1.35871841,2642.6,2642.5,0.92191]
[1729290168895,0.37839,2642.6,2642.5,0.92191]
[1729290170488,1.35871841,2642.6,2642.5,0.92191]
[1729290172100,0.37839,2642.6,2642.5,0.92191]
[1729290172300,1.35871841,2642.6,2642.5,0.92191]
[1729290173495,1.84888262,2642.6,2642.5,0.92191]
[1729290173697,0.37839,2642.6,2642.5,0.92191]
[1729290173992,0.37839,2642.6,2642.5,2.28191]
[1729290174393,1.36482861,2642.6,2642.5,2.28191]
[1729290174899,0.98643861,2642.6,2642.5,2.28191]
[1729290175100,1.1757438,2642.7,2642.6,0.37839]
[1729290175302,1.1757438,2642.7,2642.6,0.93069]
[1729290176002,0.18930519,2642.7,2642.6,0.93069]
[1729290176197,0.18930519,2642.7,2642.6,2.29069]
[1729290176402,1.1757438,2642.7,2642.6,2.29069]
[1729290177401,0.18930519,2642.7,2642.6,2.29069]
[1729290177905,1.65979781,2642.7,2642.6,2.29069]
[1729290178103,2.03817781,2642.7,2642.6,2.29069]
[1729290178297,1.65979781,2642.7,2642.6,2.29069]
[1729290179293,2.03817781,2642.7,2642.6,2.29069]
[1729290179493,0.37839,2642.6,2642.5,0.9219]
[1729290179698,1.52459,2642.6,2642.5,2.2819]
[1729290180709,1.7138915,2642.6,2642.5,2.2819]
[1729290181407,3.19533137,2642.6,2642.5,2.2819]
[1729290182015,1.7138915,2642.6,2642.5,2.2819]
[1729290182504,3.19523771,2642.6,2642.5,1.9035]
[1729290182806,3.19523771,2642.6,2642.5,2.28191]
[1729290182807,1.7138915,2642.6,2642.5,2.28191]
[1729290183504,1.7138915,2642.6,2642.5,1.9035]
[1729290183810,1.7138915,2642.6,2642.5,2.28191]
[1729290183811,3.68900872,2642.6,2642.5,2.28191]
[1729290184007,3.68900872,2642.6,2642.5,1.9035]
[1729290185007,3.68900872,2642.6,2642.5,2.28191]
[1729290185516,3.68900872,2642.6,2642.5,1.9035]
[1729290185713,0.37842,2642.5,2642.4,0.37842]
[1729290185913,0.1893015,2642.5,2642.3,1.9085]
[1729290186115,1.85972579,2642.4,2642.3,2.28693]
[1729290186414,2.04904299,2642.4,2642.3,2.28693]
[1729290186711,1.48130579,2642.4,2642.3,2.28693]
[1729290187117,1.85972579,2642.5,2642.4,0.37842]
[1729290187313,2.04903059,2642.5,2642.4,1.73842]
[1729290187813,2.04903249,2642.5,2642.4,1.73842]
[1729290189210,1.48130579,2642.5,2642.4,1.73842]
[1729290189415,1.85971579,2642.5,2642.4,1.73842]
[1729290189604,2.0490214,2642.5,2642.4,1.73842]
[1729290190313,1.48130579,2642.5,2642.4,1.73842]
[1729290191016,1.85970579,2642.6,2642.5,0.37841]
[1729290191215,2.04900808,2642.6,2642.5,0.37841]
[1729290191417,2.049008,2642.6,2642.5,0.95881]
[1729290192010,2.04892397,2642.6,2642.5,0.95881]
[1729290192419,2.04908898,2642.6,2642.5,0.95881]
[1729290192717,0.56770221,2642.6,2642.5,0.95881]
[1729290192917,0.3784,2642.6,2642.5,0.95881]
[1729290193110,2.04914546,2642.6,2642.5,0.95881]
[1729290193415,1.85984325,2642.6,2642.5,1.51581]
[1729290193611,0.3784,2642.6,2642.5,1.51581]
[1729290193817,1.85984325,2642.6,2642.5,1.51581]
[1729290194019,2.04914492,2642.6,2642.5,1.51581]
[1729290194224,1.85984325,2642.6,2642.5,1.51581]
[1729290194920,2.049142,2642.6,2642.5,1.51581]
[1729290195124,0.56769875,2642.6,2642.5,1.51581]
[1729290196810,1.86032563,2642.6,2642.5,1.51581]
[1729290197015,2.04962438,2642.6,2642.5,1.51581]
[1729290197420,0.56769875,2642.6,2642.5,1.51581]
[1729290198918,0.18929875,2642.6,2642.5,1.51581]
[1729290199118,1.48223802,2642.6,2642.5,5.29981]
[1729290199318,1.48223802,2642.7,2642.6,0.37839]
[1729290199519,0.98824374,2642.7,2642.6,2.73065433]
[1729290199723,1.48223802,2642.8,2642.7,0.37838]
[1729290199913,1.48223802,2642.8,2642.7,2.31048]
[1729290200421,1.67151437,2642.8,2642.7,2.31048]
[1729290201119,0.18927635,2642.8,2642.7,2.31048]
[1729290204037,3.22053678,2642.8,2642.7,0.95048]
[1729290204329,5.03215357,2642.8,2642.7,0.5721]
[1729290204523,5.03215357,2642.8,2642.7,0.95048]
[1729290204920,5.03215357,2642.8,2642.7,0.5721]
[1729290205320,5.03215357,2642.8,2642.7,0.95048]
[1729290205527,3.67215357,2642.8,2642.7,0.5721]
[1729290205723,0.18927635,2642.8,2642.7,2.31048]
[1729290205931,1.86050355,2642.8,2642.7,2.31048]
[1729290206131,0.56763737,2642.8,2642.7,2.31048]
[1729290208133,0.56763737,2642.8,2642.5,2.12966433]
[1729290208134,0.37838,2642.7,2642.6,1.73838]
[1729290208329,2.05006823,2642.7,2642.6,1.73838]
[1729290208525,0.56765737,2642.7,2642.6,1.73838]
[1729290209623,0.56767656,2642.7,2642.6,1.73838]
[1729290210027,1.54929656,2642.7,2642.5,3.4112]
[1729290210227,0.37841,2642.5,2642.4,0.37842]
[1729290210433,2.54282804,2642.5,2642.4,0.37842]
[1729290210636,0.37843,2642.4,2642.3,0.37843]
[1729290210838,1.86082068,2642.4,2642.3,1.73843]
[1729290211133,2.05012728,2642.4,2642.3,1.73843]
[1729290212635,2.05012746,2642.4,2642.3,1.73843]
[1729290212933,2.05012727,2642.4,2642.3,1.73843]
[1729290214030,0.56773659,2642.4,2642.3,1.73843]
[1729290214331,0.56774478,2642.4,2642.3,1.73843]
[1729290214634,1.86082965,2642.4,2642.3,1.73843]
[1729290214931,2.05014443,2642.4,2642.3,1.73843]
[1729290215141,0.56774478,2642.4,2642.3,1.73843]
[1729290216625,0.37843,2642.3,2642.2,0.5366]
[1729290216840,0.37845,2642.2,2642.1,5.1032]
[1729290217138,2.54403585,2642.2,2642.1,5.1032]
[1729290217435,2.54403585,2642.2,2642.1,1.8954]
[1729290217737,3.90403585,2642.2,2642.1,0.5354]
[1729290217928,3.90403585,2642.2,2642.1,1.36]
[1729290217929,1.54931478,2642.2,2642.1,1.36]
[1729290218231,1.54931478,2642.2,2642.1,1.73846]
[1729290218232,3.90370812,2642.2,2642.1,1.73846]
[1729290218431,3.90370812,2642.2,2642.1,1.36]
[1729290218841,3.90373035,2642.2,2642.1,1.36]
[1729290221040,1.92778701,2642.2,2642.1,1.36]
[1729290221341,3.40897877,2642.2,2642.1,1.36]
[1729290221537,3.21964176,2642.2,2642.1,1.36]
[1729290223943,3.4089703,2642.2,2642.1,1.36]
[1729290224145,3.21964176,2642.2,2642.1,1.36]
[1729290225945,3.40897566,2642.2,2642.1,1.36]
[1729290226537,3.21964176,2642.2,2642.1,1.36]
[1729290227538,0.37845,2642.2,2642.1,1.36]
[1729290227947,0.37845,2642.2,2642.1,1.73846]
[1729290228142,1.85964176,2642.2,2642.1,1.73846]
[1729290228644,0.37845,2642.2,2642.1,1.73846]
[1729290228831,1.85964176,2642.2,2642.1,1.73846]
[1729290233434,0.98665638,2642.3,2642.1,5.1448]
[1729290233647,1.97594334,2642.6,2642.2,10.293]
[1729290233648,0.98665638,2642.5,2642.2,10.293]
[1729290233835,1.73841,2642.5,2642.4,0.37841]
[1729290234040,1.73841,2642.5,2642.2,5.1482]
[1729290234041,1.73842,2642.4,2642.3,0.5362]
[1729290234237,2.72516146,2642.4,2642.3,2.27463]
[1729290234441,1.36516146,2642.4,2642.3,2.27463]
[1729290235747,0.98674146,2642.4,2642.3,2.27463]
[1729290236044,0.98674146,2642.5,2642.4,0.37842]
[1729290236249,0.98674146,2642.5,2642.4,1.73842]
[1729290236638,1.36515146,2642.5,2642.4,1.73842]
[1729290237940,0.98674146,2642.5,2642.4,1.73842]
[1729290239742,1.48119176,2642.6,2642.5,0.37841]
[1729290239949,0.98682602,2642.6,2642.5,0.37841]
[1729290240544,1.36521602,2642.6,2642.5,0.37841]
[1729290240946,0.37842,2642.5,2642.4,0.37841]
[1729290241253,1.93673602,2642.5,2642.4,0.37841]
[1729290241453,1.55832602,2642.5,2642.4,1.73841]
[1729290241639,1.93673602,2642.5,2642.4,1.73841]
[1729290242151,1.55832602,2642.5,2642.4,1.73841]
[1729290242452,1.93673602,2642.5,2642.4,1.73841]
[1729290242648,2.43110176,2642.5,2642.4,1.73841]
[1729290242845,1.93671999,2642.5,2642.4,1.73841]
[1729290243448,0.94991,2642.5,2642.4,1.73841]
[1729290244254,1.9367421,2642.5,2642.4,1.73841]
[1729290244453,0.94991,2642.5,2642.4,1.73841]
[1729290244847,1.93675872,2642.5,2642.4,1.73841]
[1729290245048,0.94991,2642.5,2642.4,1.73841]
[1729290245447,2.43110176,2642.5,2642.4,1.73841]
[1729290247258,1.93723081,2642.5,2642.4,1.73841]
[1729290247551,2.43110176,2642.5,2642.4,1.73841]
[1729290249743,2.62041016,2642.5,2642.4,1.73841]
[1729290251154,1.1392184,2642.5,2642.4,1.73841]
[1729290251554,3.11516174,2642.5,2642.4,1.73841]
[1729290254056,3.11516174,2642.5,2642.4,0.37841]
[1729290254259,4.47516174,2642.5,2642.4,0.37841]
[1729290254454,4.47516174,2642.5,2642.4,1.73841]
[1729290254755,3.11516174,2642.5,2642.4,1.73841]
[1729290256758,2.16525174,2642.5,2642.4,1.73841]
[1729290256955,0.1893084,2642.5,2642.4,1.73841]
[1729290257152,1.48283508,2642.5,2642.4,5.52242]
[1729290257755,1.48283508,2642.6,2642.4,8.3518]
[1729290257951,1.48283508,2642.6,2642.5,1.73841]
[1729290260460,1.67212423,2642.7,2642.5,1.36]
[1729290260663,0.37838,2642.7,2642.6,0.94439]
[1729290260876,0.37838,2642.7,2642.4,4.94621]
[1729290260877,0.37841,2642.5,2642.4,4.94621]
[1729290261058,1.86136273,2642.5,2642.4,4.94621]
[1729290261258,2.05065645,2642.5,2642.4,4.94621]
[1729290261567,0.56770372,2642.5,2642.4,4.94621]
[1729290261860,2.05062612,2642.5,2642.4,3.58621]
[1729290262058,2.05062612,2642.5,2642.4,1.73841]
[1729290262059,0.56770372,2642.5,2642.4,1.73841]
[1729290262450,2.05059784,2642.5,2642.4,1.73841]
[1729290262651,2.05059301,2642.5,2642.4,1.73841]
[1729290262850,0.56770372,2642.5,2642.4,1.73841]
[1729290263656,0.56771789,2642.5,2642.4,1.73841]
[1729290264465,2.05066118,2642.5,2642.4,1.73841]
[1729290264858,0.56771789,2642.5,2642.4,1.73841]
[1729290266570,2.54366123,2642.5,2642.4,1.73841]
[1729290268455,0.56771789,2642.5,2642.4,1.73841]
[1729290269169,2.54366123,2642.5,2642.4,1.73841]
[1729290270671,2.54366123,2642.5,2642.4,1.36]
[1729290270967,0.37842,2642.4,2642.3,2.84062]
[1729290271174,0.56772789,2642.4,2642.3,2.84062]
[1729290271571,2.54367123,2642.4,2642.3,2.84062]
[1729290272074,0.56772789,2642.4,2642.3,2.84062]
[1729290272567,2.54367123,2642.4,2642.3,2.84062]
[1729290272972,2.54367977,2642.4,2642.3,2.84062]
[1729290277474,0.56773295,2642.4,2642.3,2.84062]
[1729290278779,5.72734145,2642.4,2642.1,3.2078]
[1729290278983,1.36,2642.2,2642.1,3.58625]
[1729290279187,2.1683437,2642.2,2642.1,4.94626]
[1729290279388,2.16835074,2642.2,2642.1,4.94626]
[1729290279687,0.18931295,2642.2,2642.1,4.94626]
[1729290280484,0.18931295,2642.2,2642.1,3.58626]
[1729290280485,1.73845,2642.2,2642.1,3.58626]
[1729290280687,2.54690439,2642.2,2642.1,4.94626]
[1729290280879,4.74579212,2642.2,2642.1,4.94626]
[1729290281272,2.54685799,2642.2,2642.1,1.73846]
[1729290282087,2.35754504,2642.2,2642.1,1.73846]
[1729290282278,2.54687473,2642.2,2642.1,1.73846]
[1729290282982,2.16842473,2642.2,2642.1,1.73846]
[1729290283699,2.54687473,2642.2,2642.1,1.73846]
[1729290284293,2.16842473,2642.2,2642.1,1.73846]
[1729290284592,2.54687473,2642.2,2642.1,1.73846]
[1729290285096,1.67332587,2642.2,2642.1,1.73846]
[1729290285399,1.67331327,2642.2,2642.1,2.73072433]
[1729290285793,1.48399618,2642.2,2642.1,2.73072433]
[1729290288705,1.48399618,2642.2,2642.1,3.76410626]
[1729290288899,1.48399618,2642.2,2642.1,2.73072433]
[1729290289703,1.48399618,2642.2,2642.1,6.97194126]
[1729290289905,1.48399618,2642.2,2642.1,5.93852433]
[1729290291795,1.48399618,2642.2,2642.1,6.97189739]
[1729290292002,1.48399618,2642.2,2642.1,5.93852433]
[1729290292806,1.48399618,2642.2,2642.1,2.73072433]
[1729290294999,1.48399618,2642.3,2642.2,0.37845]
[1729290295199,1.67330213,2642.3,2642.2,2.81135]
[1729290296097,1.67330843,2642.3,2642.2,2.81135]
[1729290296299,1.48399618,2642.3,2642.2,3.80382963]
[1729290296611,1.48399618,2642.3,2642.2,2.81135]
[1729290296907,1.67330057,2642.3,2642.2,2.81135]
[1729290297502,1.48399618,2642.4,2642.2,4.45871515]
[1729290297710,1.48399618,2642.4,2642.3,4.94623]
[1729290297901,0.37842,2642.4,2642.3,0.93593]
[1729290298109,1.1015204,2642.4,2642.3,2.29593]
[1729290298507,0.7231004,2642.4,2642.3,2.29593]
[1729290298710,2.70219544,2642.4,2642.3,2.29593]
[1729290300112,3.08061544,2642.4,2642.3,2.29593]
[1729290300313,2.70219544,2642.4,2642.3,2.29593]
[1729290300607,0.72310881,2642.4,2642.3,2.29593]
[1729290300805,2.70220385,2642.4,2642.3,2.29593]
[1729290301311,3.08062385,2642.4,2642.3,2.29593]
[1729290301512,2.70220385,2642.4,2642.3,2.29593]
[1729290303010,3.08062385,2642.4,2642.3,2.29593]
[1729290303812,2.70220385,2642.4,2642.3,2.29593]
[1729290304009,2.70220379,2642.4,2642.3,2.29593]
[1729290305305,3.08062379,2642.4,2642.3,2.29593]
[1729290305908,2.70220379,2642.4,2642.3,2.29593]
[1729290308513,2.70220379,2642.4,2642.3,3.28840963]
[1729290309211,2.70220379,2642.4,2642.3,2.29593]
[1729290310821,2.70220379,2642.4,2642.3,3.28840963]
[1729290311217,2.70220379,2642.4,2642.3,2.29593]
[1729290311612,2.70220379,2642.4,2642.3,3.28840963]
[1729290313306,0.7231084,2642.4,2642.3,3.28840963]
[1729290313510,2.70220344,2642.4,2642.3,3.28840963]
[1729290314617,0.7231084,2642.4,2642.3,3.28840963]
[1729290314827,2.70220344,2642.4,2642.3,3.28840963]
[1729290318014,2.7022009,2642.4,2642.3,3.28840963]
[1729290318615,2.7022009,2642.4,2642.3,2.29593]
[1729290319223,0.72310586,2642.4,2642.3,3.28840963]
[1729290319425,2.7022009,2642.4,2642.3,2.29593]
[1729290324324,2.7022009,2642.4,2642.3,3.28840963]
[1729290324525,0.18930586,2642.4,2642.3,3.28840963]
[1729290324728,1.97909504,2642.5,2642.4,0.37842]
[1729290324928,2.54680684,2642.5,2642.4,0.37842]
[1729290326626,2.16839684,2642.5,2642.4,0.37842]
[1729290327329,1.97909504,2642.5,2642.4,1.37089963]
[1729290327531,2.16839654,2642.5,2642.4,1.37089963]
[1729290327735,1.48372662,2642.5,2642.4,9.51351669]
[1729290327936,1.48372662,2642.5,2642.4,9.89193669]
[1729290328135,0.98907418,2642.5,2642.4,10.87351669]
[1729290328335,1.48372662,2642.5,2642.4,7.46793669]
[1729290329342,2.35747504,2642.7,2642.4,7.08951669]
[1729290329541,1.48352889,2642.5,2642.4,5.07415853]
[1729290329731,1.48352889,2642.5,2642.4,6.10542888]
[1729290330834,1.48352889,2642.5,2642.4,7.46542888]
[1729290331235,1.48352889,2642.6,2642.5,0.37841]
[1729290331431,0.18929,2642.6,2642.5,2.73105712]
[1729290331936,1.48348898,2642.6,2642.5,2.73105712]
[1729290332145,1.67277894,2642.6,2642.5,2.73105712]
[1729290332738,0.18928996,2642.6,2642.5,2.73105712]
[1729290333043,1.48339726,2642.6,2642.5,2.73105712]
[1729290333345,1.67268722,2642.6,2642.5,2.73105712]
[1729290333640,0.18928996,2642.6,2642.5,2.73105712]
[1729290333836,0.18928996,2642.6,2642.5,1.73841]
[1729290335336,1.67251313,2642.6,2642.5,1.73841]
[1729290335733,1.54928996,2642.6,2642.4,1.37105712]
[1729290335933,0.37842,2642.4,2642.3,3.2078]
[1729290336136,4.74893154,2642.4,2642.3,3.2078]
[1729290336338,6.10893154,2642.4,2642.3,3.2078]
[1729290337937,0.37843,2642.3,2642.2,0.37844]
[1729290338138,0.56773145,2642.3,2642.2,0.37844]
[1729290338747,0.56774145,2642.3,2642.2,0.37845]
[1729290338938,0.37845,2642.2,2642.1,4.94625]
[1729290339141,2.51323471,2642.2,2642.1,4.94626]
[1729290339348,3.08098616,2642.2,2642.1,4.94626]
[1729290339842,3.08098616,2642.2,2642.1,1.73846]
[1729290340036,3.08098616,2642.2,2642.1,4.94626]
[1729290340744,3.08098616,2642.2,2642.1,1.73846]
[1729290340937,4.44098616,2642.2,2642.1,4.94626]
[1729290341243,2.46407565,2642.2,2642.1,4.94626]
[1729290341641,4.44101036,2642.2,2642.1,4.94626]
[1729290342141,2.46407565,2642.2,2642.1,4.94626]
[1729290342541,2.46407565,2642.2,2642.1,1.73846]
[1729290342737,2.46407565,2642.2,2642.1,4.94626]
[1729290344946,2.46407565,2642.2,2642.1,1.73846]
[1729290345242,2.46407565,2642.2,2642.1,4.94626]
[1729290346046,2.46407565,2642.2,2642.1,1.73846]
[1729290346536,2.46407565,2642.2,2642.1,4.94626]
[1729290347836,2.46407565,2642.2,2642.1,1.73846]
[1729290348142,2.46407565,2642.2,2642.1,4.94626]
[1729290348846,3.94593494,2642.2,2642.1,4.94626]
[1729290350544,3.94593634,2642.2,2642.1,4.94626]
[1729290352441,3.94593634,2642.2,2642.1,1.73846]
[1729290352643,3.94593634,2642.2,2642.1,4.94626]
[1729290353241,3.94593634,2642.2,2642.1,1.73846]
[1729290353441,3.94593634,2642.2,2642.1,4.94626]
[1729290353950,3.94593634,2642.2,2642.1,1.73846]
[1729290354352,3.94593634,2642.2,2642.1,4.94626]
[1729290355449,3.94593704,2642.2,2642.1,4.94626]
[1729290355841,3.94593704,2642.2,2642.1,3.58626]
[1729290357846,3.94593704,2642.2,2642.1,4.94626]
[1729290359951,3.94593748,2642.2,2642.1,4.94626]
[1729290360148,2.08562819,2642.2,2642.0,0.37848]
[1729290360344,0.37848,2642.0,2641.9,0.89489]
[1729290360541,0.37848,2642.0,2641.8,1.8937]
[1729290360542,1.73848,2642.0,2641.8,0.9122]
[1729290360752,3.93812987,2641.9,2641.8,0.9122]
[1729290361445,3.74877993,2641.9,2641.8,0.9122]
[1729290361646,2.26769,2641.9,2641.8,0.9122]
[1729290361858,3.74877993,2641.9,2641.8,0.9122]
[1729290363357,2.26769,2641.9,2641.8,0.9122]
[1729290363860,3.74877993,2641.9,2641.8,0.9122]
[1729290364256,2.26769,2641.9,2641.8,0.5337]
[1729290364561,3.74877993,2641.9,2641.8,0.5337]
[1729290364960,3.93813665,2641.9,2641.8,0.5337]
[1729290365154,3.74877993,2641.9,2641.8,0.5337]
[1729290365846,2.26769,2641.9,2641.8,0.5337]
[1729290366047,3.74877993,2641.9,2641.8,0.5337]
[1729290366252,2.26769,2641.9,2641.8,0.5337]
[1729290366458,3.74877993,2641.9,2641.8,0.5337]
[1729290367159,3.74877993,2641.9,2641.8,0.91221]
[1729290367365,3.74877993,2641.9,2641.8,0.5337]
[1729290367569,3.74877993,2641.9,2641.8,0.91221]
[1729290367864,3.74877993,2641.9,2641.8,0.5337]
[1729290368957,3.25439899,2641.9,2641.8,0.5337]
[1729290369155,6.13228874,2641.9,2641.6,3.58633]
[1729290369351,3.21960993,2641.7,2641.6,3.2078]
[1729290369554,3.21960993,2641.7,2641.6,3.58633]
[1729290369555,3.40898034,2641.7,2641.6,3.58633]
[1729290369758,3.93598034,2641.7,2641.6,3.58633]
[1729290370362,3.93598034,2641.7,2641.6,3.2078]